fUST/lending_fUST_20251020
["ID","MTS","AMOUNT","RATE_DAILY","PERIOD"]
[391890280,1760957440525,-2469.66,0.00028209,3]
[391890281,1760957440535,-1680.0,0.00028231,2]
[391890282,1760957440545,-500.0,0.0002825,3]
[391890283,1760957440555,-1849.0,0.0002825,3]
[391890284,1760957440566,-586.0,0.0002825,3]
[391890285,1760957440576,-500.0,0.0002825,3]
[391890286,1760957440585,-500.0,0.0002827,15]
[391890287,1760957440595,-165.85092125,0.00028305,3]
[391890288,1760957440605,-1849.0,0.00028305,3]
[391890289,1760957440619,-586.0,0.00028305,3]
[391890290,1760957440628,-500.0,0.00028305,3]
[391890291,1760957440638,-600.0,0.00028343,11]
[391890292,1760957440647,-1849.0,0.00028359,3]
[391890293,1760957440657,-586.0,0.00028359,3]
[391890294,1760957440667,-500.0,0.00028359,3]
[391890295,1760957440676,-1849.0,0.00028414,3]
[391890296,1760957440688,-586.0,0.00028414,3]
[391890297,1760957440697,-500.0,0.00028414,3]
[391890298,1760957440707,-1849.0,0.00028469,3]
[391890299,1760957440716,-586.0,0.00028469,3]
[391890300,1760957440726,-500.0,0.00028469,3]
[391890301,1760957440735,-2000.0,0.00028516,5]
[391890302,1760957440744,-1500.0,0.00028516,5]
[391890303,1760957440754,-946.45912168,0.00028516,5]
[391890304,1760957440767,-901.58133939,0.00028516,5]
[391890305,1760957440778,-2000.0,0.00028516,5]
[391890306,1760957440788,-1290.63311626,0.00028516,5]
[391890307,1760957440797,-1849.0,0.00028524,3]
[391890308,1760957440808,-586.0,0.00028524,3]
[391890309,1760957440817,-500.0,0.00028524,3]
[391890310,1760957440827,-500.0,0.00028544,15]
[391890311,1760957440836,-1395.51475557,0.00028553,2]
[391890312,1760957440846,-1849.0,0.00028579,3]
[391890313,1760957440855,-586.0,0.00028579,3]
[391890314,1760957440866,-429.97632628,0.00028579,3]
[391890315,1760957440876,-420.0,0.00028581,2]
[391890316,1760957440885,-151.0,0.00028598,2]
[391890317,1760957440895,-151.0,0.00028598,2]
[391890318,1760957440905,-213.3186526,0.00028598,2]
[391890319,1760957440914,-151.37473815,0.00028598,2]
[391890320,1760957440924,-500.0,0.00028598,2]
[391890321,1760957440933,-500.0,0.00028598,2]
[391890322,1760957440943,-151.0,0.00028598,2]
[391890323,1760957440952,-500.0,0.00028598,2]
[391890324,1760957440962,-500.0,0.00028598,2]
[391890325,1760957440971,-151.0,0.00028598,2]
[391890326,1760957440980,-500.0,0.00028598,2]
[391890327,1760957440991,-500.0,0.00028598,2]
[391890328,1760957441000,-500.0,0.00028598,2]
[391890329,1760957441009,-151.0,0.00028598,2]
[391890330,1760957441019,-151.0,0.00028598,2]
[391890331,1760957441028,-151.0,0.00028598,2]
[391890332,1760957441038,-272.99309488,0.00028598,2]
[391890333,1760957441047,-150.0,0.000286,5]
[391890334,1760957441057,-402.9601108,0.00028622,2]
[391890335,1760957441066,-1849.0,0.00028633,3]
[391890336,1760957441076,-586.0,0.00028633,3]
[391890337,1760957441085,-151.0,0.00028653,2]
[391890338,1760957441094,-151.0,0.00028653,2]
[391890339,1760957441103,-500.0,0.00028653,2]
[391890340,1760957441114,-580.5971618,0.00028653,2]
[391890341,1760957441123,-151.0,0.00028653,2]
[391890342,1760957441132,-500.0,0.00028653,2]
[391890343,1760957441141,-500.0,0.00028653,2]
[391890344,1760957441151,-151.0,0.00028653,2]
[391890345,1760957441160,-500.0,0.00028653,2]
[391890346,1760957441170,-500.0,0.00028653,2]
[391890347,1760957441179,-560.46134789,0.00028653,2]
[391890348,1760957441188,-151.61557415,0.00028653,2]
[391890349,1760957441198,-151.0,0.00028653,2]
[391890350,1760957441208,-151.0,0.00028653,2]
[391890351,1760957441218,-1849.0,0.00028688,3]
[391890352,1760957441228,-586.0,0.00028688,3]
[391890353,1760957441238,-152.29305162,0.00028708,2]
[391890354,1760957441247,-151.56260228,0.00028708,2]
[391890355,1760957441256,-500.0,0.00028708,2]
[391890356,1760957441266,-151.0,0.00028708,2]
[391890357,1760957441275,-500.0,0.00028708,2]
[391890358,1760957441285,-500.0,0.00028708,2]
[391890359,1760957441294,-249.29810661,0.00028708,2]
[391890360,1760957441305,-500.0,0.00028708,2]
[391890361,1760957441315,-500.0,0.00028708,2]
[391890362,1760957441325,-151.0,0.00028708,2]
[391890363,1760957441335,-151.0,0.00028708,2]
[391890364,1760957441345,-3000.0,0.00028712,5]
[391890365,1760957441354,-1849.0,0.00028743,3]
[391890366,1760957441365,-586.0,0.00028743,3]
[391890367,1760957441374,-500.0,0.00028762,2]
[391890368,1760957441383,-202.35749936,0.00028762,2]
[391890369,1760957441392,-500.0,0.00028762,2]
[391890370,1760957441401,-456.36142473,0.00028762,2]
[391890371,1760957441411,-500.0,0.00028762,2]
[391890372,1760957441420,-500.0,0.00028762,2]
[391890373,1760957441430,-151.0,0.00028762,2]
[391890374,1760957441439,-199.93893208,0.00028762,2]
[391890375,1760957441448,-150.0,0.00028768,5]
[391890376,1760957441457,-1849.0,0.00028798,3]
[391890377,1760957441466,-586.0,0.00028798,3]
[391890378,1760957441475,-13277.13,0.000288,4]
[391890379,1760957441485,-500.0,0.00028817,2]
[391890380,1760957441494,-500.0,0.00028817,2]
[391890381,1760957441503,-500.0,0.00028817,2]
[391890382,1760957441512,-550.4742694,0.00028817,2]
[391890383,1760957441522,-274.4352498,0.00028817,2]
[391890384,1760957441531,-500.0,0.00028818,15]
[391890385,1760957441540,-1849.0,0.00028853,3]
[391890386,1760957441549,-586.0,0.00028853,3]
[391890387,1760957441559,-500.0,0.00028872,2]
[391890388,1760957441568,-524.91923794,0.00028872,2]
[391890389,1760957441577,-500.0,0.00028872,2]
[391890390,1760957441586,-150.0,0.00028886,5]
[391890391,1760957441595,-1849.0,0.00028907,3]
[391890392,1760957441604,-586.0,0.00028907,3]
[391890393,1760957441616,-500.0,0.00028927,2]
[391890394,1760957441626,-500.0,0.00028927,2]
[391890395,1760957441635,-754.69832799,0.00028945,2]
[391890396,1760957441645,-1849.0,0.00028962,3]
[391890397,1760957441655,-586.0,0.00028962,3]
[391890398,1760957441666,-503.29527612,0.00028982,2]
[391890399,1760957441675,-500.0,0.00028982,2]
[391890400,1760957441684,-1849.0,0.00029017,3]
[391890401,1760957441695,-586.0,0.00029017,3]
[391890402,1760957441705,-304.16799581,0.00029036,2]
[391890403,1760957441715,-2515.50384054,0.00029064,5]
[391890404,1760957441725,-2500.0,0.00029064,5]
[391890405,1760957441735,-1849.0,0.00029072,3]
[391890406,1760957441744,-586.0,0.00029072,3]
[391890407,1760957441758,-543.5,0.00029092,15]
[391890408,1760957441771,-16422.69,0.000291,7]
[391890409,1760957441781,-1849.0,0.00029126,3]
[391890410,1760957441791,-586.0,0.00029126,3]
[391890411,1760957441800,-161.57387509,0.0002913,5]
[391890412,1760957441809,-250.0,0.00029148,5]
[391890413,1760957441819,-1862.55018946,0.00029181,3]
[391890414,1760957441828,-586.0,0.00029181,3]
[391890415,1760957441838,-3500.0,0.0002926,5]
[391890416,1760957441848,-300.0,0.00029316,5]
[391890417,1760957441859,-1000.0,0.000294,2]
[391890418,1760957441869,-1000.0,0.000294,2]
[391890419,1760957441878,-1000.0,0.000294,2]
[391890420,1760957441888,-1000.0,0.000294,2]
[391890421,1760957441898,-1000.0,0.000294,2]
[391890422,1760957441907,-1000.0,0.000294,2]
[391890423,1760957441916,-1000.0,0.000294,2]
[391890424,1760957441926,-504.3359731,0.00029433,2]
[391890425,1760957441936,-750.0,0.00029433,14]
[391890426,1760957441946,-250.0,0.00029434,5]
[391890427,1760957441956,-5000.0,0.00029434,2]
[391890428,1760957441966,-2647.65,0.000295,2]
[391890429,1760957441975,-229.290509,0.0002959,2]
[391890430,1760957441985,-212.10558,0.0002959,2]
[391890431,1760957441995,-3000.0,0.00029612,5]
[391890432,1760957442005,-900.0,0.00029689,17]
[391890433,1760957442016,-350.0,0.00029696,5]
[391890434,1760957442025,-1050.0,0.00029699,20]
[391890435,1760957442036,-500.0,0.00029714,2]
[391890436,1760957442048,-151.0,0.00029714,2]
[391890437,1760957442060,-151.0,0.00029714,2]
[391890438,1760957442070,-500.0,0.00029714,2]
[391890439,1760957442080,-151.0,0.00029714,2]
[391890440,1760957442091,-500.0,0.00029714,2]
[391890441,1760957442202,-151.0,0.00029714,2]
[391890442,1760957442226,-500.0,0.00029714,2]
[391890443,1760957442236,-501.50400688,0.00029769,2]
[391890444,1760957442245,-151.0,0.00029769,2]
[391890445,1760957442255,-151.0,0.00029769,2]
[391890446,1760957442265,-500.0,0.00029769,2]
[391890447,1760957442274,-500.0,0.00029769,2]
[391890448,1760957442283,-151.0,0.00029769,2]
[391890449,1760957442293,-500.0,0.00029769,2]
[391890450,1760957442303,-4000.0,0.00029808,5]
[391890451,1760957442312,-151.0,0.00029824,2]
[391890452,1760957442322,-151.0,0.00029824,2]
[391890453,1760957442332,-500.0,0.00029824,2]
[391890454,1760957442341,-500.0,0.00029824,2]
[391890455,1760957442350,-151.0,0.00029824,2]
[391890456,1760957442362,-500.0,0.00029824,2]
[391890457,1760957442372,-450.0,0.00029864,5]
[391890458,1760957442382,-151.0,0.00029878,2]
[391890459,1760957442391,-151.0,0.00029878,2]
[391890460,1760957442402,-154.12276168,0.00029878,2]
[391890461,1760957442411,-152.89452512,0.00029878,2]
[391890462,1760957442421,-172.2861611,0.00029878,2]
[391890463,1760957442431,-500.0,0.00029878,2]
[391890464,1760957442440,-199.88629968,0.00029933,2]
[391890465,1760957442450,-152.27320854,0.00029933,2]
[391890466,1760957442459,-500.0,0.00029933,2]
[391890467,1760957442469,-350.0,0.00029982,5]
[391890468,1760957442478,-153.71087954,0.00029988,2]
[391890469,1760957442488,-229.290509,0.0003,15]
[391890470,1760957442497,-212.10558,0.0003,15]
[391890471,1760957442507,-1000.0,0.0003,14]
[391890472,1760957442516,-197.55868691,0.0003,14]
[391890473,1760957442526,-158.4,0.0003,2]
[391890474,1760957442535,-1000.0,0.00030092,4]
[391890475,1760957442545,-2276.05077472,0.00030095,2]
[391890476,1760957442555,-3500.0,0.0003016,5]
[391890477,1760957442564,-450.0,0.00030244,5]
[391890478,1760957442573,-333.40032642,0.00030344,5]
[391890479,1760957442583,-600.0,0.00030412,5]
[391890480,1760957442592,-587.0,0.00030417,2]
[391890481,1760957442601,-2351.0,0.0003069,2]
[391890482,1760957442615,-4000.0,0.00030708,5]
[391890483,1760957442624,-550.0,0.00030792,5]
[391890484,1760957442634,-525.54335911,0.00030919,2]
[391890485,1760957442643,-190.61910525,0.00030919,2]
[391890486,1760957442653,-683.61310881,0.0003096,5]
[391890487,1760957442665,-177.60905157,0.00031,120]
[391890488,1760957442674,-198.7963364,0.00031,120]
[391890489,1760957442685,-389.45832688,0.00031,120]
[391890490,1760957442695,-164.42682939,0.00031,120]
[391890491,1760957442704,-16422.69,0.00031,7]
[391890492,1760957442713,-2500.0,0.00031,2]
[391890493,1760957442723,-2500.0,0.00031,2]
[391890494,1760957442732,-5000.0,0.00031,2]
[391890495,1760957442742,-4500.0,0.00031256,5]
[391890496,1760957442751,-557.02076465,0.0003134,5]
[391890497,1760957442762,-229.290509,0.00031662,2]
[391890498,1760957442771,-212.10558,0.00031662,2]
[391890499,1760957442781,-1432.24399238,0.00031716,2]
[391890500,1760957442791,-5000.0,0.00031804,5]
[391890501,1760957442802,-1432.24399238,0.00031892,2]
[391890502,1760957442811,-250.0,0.00031899,2]
[391890503,1760957442821,-1200.0,0.00031899,51]
[391890504,1760957442830,-177.60905157,0.000319,120]
[391890505,1760957442841,-198.7963364,0.000319,120]
[391890506,1760957442851,-389.45832688,0.000319,120]
[391890507,1760957442862,-2500.0,0.00032,2]
[391890508,1760957442872,-3500.0,0.00032,2]
[391890509,1760957442882,-2500.0,0.00032,2]
[391890510,1760957442892,-9509.0,0.00032,2]
[391890511,1760957442902,-200.0,0.00032,120]
[391890512,1760957442912,-229.290509,0.0003203,15]
[391890513,1760957442922,-212.10558,0.0003203,15]
[391890514,1760957442932,-225.44840221,0.00032186,2]
[391890515,1760957442941,-2647.65,0.000322,2]
[391890516,1760957442952,-1432.24399238,0.00032236,2]
[391890517,1760957442963,-5500.0,0.00032352,5]
[391890518,1760957442973,-1000.0,0.00032414,2]
[391890519,1760957442982,-1000.0,0.00032414,2]
[391890520,1760957442992,-1000.0,0.00032414,2]
[391890522,1760957443001,-1000.0,0.00032414,2]
[391890524,1760957443010,-1000.0,0.00032414,2]
[391890526,1760957443019,-1000.0,0.00032414,2]
[391890530,1760957443028,-1039.57200299,0.00032414,2]
[391890532,1760957443039,-1424.6490651,0.00032484,2]
[391890533,1760957443049,-604.95003461,0.00032484,2]
[391890535,1760957443058,-2417.38033832,0.00032484,2]
[391890536,1760957443067,-151.0,0.000325,18]
[391890537,1760957443077,-1432.24399238,0.00032519,2]
[391890538,1760957443086,-1432.24399238,0.00032836,2]
[391890539,1760957443095,-2999.0,0.00032876,120]
[391890540,1760957443105,-1350.0,0.00032893,54]
[391890541,1760957443115,-177.60905157,0.000329,120]
[391890542,1760957443124,-198.7963364,0.000329,120]
[391890543,1760957443134,-389.45832688,0.000329,120]
[391890544,1760957443143,-6000.0,0.000329,5]
[391890545,1760957443153,-823.0,0.00032919,2]
[391890546,1760957443162,-632.0,0.00032994,2]
[391890547,1760957443171,-411.0,0.00032994,2]
[391890548,1760957443180,-4204.0,0.00032994,2]
[391890549,1760957443190,-1500.0,0.00033,2]
[391890550,1760957443199,-16422.69,0.00033,14]
[391890551,1760957443210,-155.0,0.00033,14]
[391890552,1760957443219,-1432.24399238,0.0003301,2]
[391890554,1760957443229,-1500.0,0.00033189,57]
[391890555,1760957443239,-1650.0,0.00033189,60]
[391890556,1760957443250,-635.64,0.00033199,63]
[391890557,1760957443260,-177.24960773,0.000332,117]
[391890558,1760957443270,-190.0811961,0.00033203,30]
[391890559,1760957443281,-153.0,0.00033203,30]
[391890560,1760957443291,-153.0,0.00033214,2]
[391890561,1760957443303,-153.0,0.00033214,2]
[391890562,1760957443312,-1432.24399238,0.00033267,2]
[391890563,1760957443323,-151.0,0.000333,20]
[391890564,1760957443333,-283.7,0.000333,2]
[391890565,1760957443342,-400.0,0.000333,2]
[391890566,1760957443352,-480.0,0.00033363,3]
[391890567,1760957443362,-6500.0,0.00033448,5]
[391890568,1760957443371,-1432.24399243,0.0003354,2]
[391890569,1760957443381,-2999.0,0.00033561,120]
[391890570,1760957443392,-500.0,0.00033673,5]
[391890571,1760957443401,-53108.52,0.000337,10]
[391890572,1760957443411,-168.0,0.00033714,2]
[391890573,1760957443420,-229.290509,0.00033735,2]
[391890574,1760957443430,-212.10558,0.00033735,2]
[391890575,1760957443439,-7746.9100923,0.00033751,14]
[391890576,1760957443449,-159.97751647,0.00033753,7]
[391890577,1760957443459,-168.0,0.00033769,2]
[391890578,1760957443468,-1000.0,0.000338,13]
[391890579,1760957443478,-7291.5005824,0.00033844,2]
[391890580,1760957443487,-229.290509,0.00033853,20]
[391890581,1760957443496,-212.10558,0.00033853,20]
[391890582,1760957443505,-264.94433982,0.00033872,120]
[391890583,1760957443515,-7815.435615,0.00033873,2]
[391890584,1760957443524,-11168.1614082,0.00033879,2]
[391890585,1760957443534,-35336.2476627,0.00033895,2]
[391890586,1760957443544,-198.7963364,0.000339,120]
[391890587,1760957443553,-389.45832688,0.000339,120]
[391890588,1760957443563,-183.026705,0.00033922,30]
[391890589,1760957443572,-192.259718,0.00033922,30]
[391890590,1760957443582,-151.0,0.00033922,30]
[391890591,1760957443591,-192.259718,0.00033922,30]
[391890592,1760957443600,-151.0,0.00033922,30]
[391890593,1760957443610,-192.259718,0.00033922,30]
[391890594,1760957443623,-205.28185,0.00033922,30]
[391890595,1760957443633,-151.0,0.00033922,30]
[391890596,1760957443642,-151.0,0.00033922,30]
[391890597,1760957443652,-192.259718,0.00033922,30]
[391890598,1760957443663,-205.28185,0.00033922,30]
[391890599,1760957443673,-151.0,0.00033922,30]
[391890600,1760957443683,-151.0,0.00033922,30]
[391890601,1760957443695,-205.28185,0.00033922,30]
[391890602,1760957443704,-151.0,0.00033922,30]
[391890603,1760957443720,-205.28185,0.00033922,30]
[391890604,1760957443729,-151.0,0.00033922,30]
[391890605,1760957443738,-168.195918,0.00033922,30]
[391890606,1760957443748,-324.678356,0.00033922,7]
[391890607,1760957443758,-151.0,0.00033922,30]
[391890608,1760957443767,-151.0,0.00033922,30]
[391890609,1760957443777,-151.0,0.00033922,30]
[391890610,1760957443788,-151.0,0.00033922,30]
[391890611,1760957443798,-151.0,0.00033922,30]
[391890612,1760957443811,-324.678356,0.00033922,7]
[391890614,1760957443821,-151.0,0.00033922,30]
[391890615,1760957443831,-324.678356,0.00033922,7]
[391890616,1760957443841,-324.678356,0.00033922,7]
[391890617,1760957443851,-151.0,0.00033922,30]
[391890618,1760957443861,-408.067066,0.00033922,30]
[391890619,1760957443871,-408.067066,0.00033922,30]
[391890620,1760957443881,-408.067066,0.00033922,30]
[391890621,1760957443891,-408.067066,0.00033922,30]
[391890622,1760957443902,-1823.142174,0.00033922,30]
[391890623,1760957443921,-1823.142174,0.00033922,30]
[391890624,1760957443944,-1823.142174,0.00033922,30]
[391890625,1760957443958,-1823.142174,0.00033922,30]
[391890626,1760957443967,-151.0,0.00033922,30]
[391890627,1760957443977,-151.0,0.00033922,30]
[391890628,1760957443987,-151.0,0.00033922,30]
[391890629,1760957443997,-151.0,0.00033922,30]
[391890630,1760957444007,-151.0,0.00033922,30]
[391890631,1760957444016,-151.0,0.00033922,30]
[391890632,1760957444026,-636.51,0.0003393,30]
[391890633,1760957444036,-636.51,0.0003393,30]
[391890634,1760957444046,-636.51,0.0003393,30]
[391890635,1760957444055,-636.51,0.0003393,30]
[391890636,1760957444065,-744.84740603,0.00033937,14]
[391890637,1760957444074,-8300.0,0.0003394,30]
[391890638,1760957444083,-166.544519,0.00033944,30]
[391890639,1760957444093,-166.544519,0.00033944,30]
[391890640,1760957444102,-166.544519,0.00033944,30]
[391890641,1760957444114,-166.544519,0.00033944,30]
[391890642,1760957444124,-151.0,0.00033944,30]
[391890643,1760957444272,-151.0,0.00033944,30]
[391890644,1760957444281,-151.0,0.00033944,30]
[391890645,1760957444291,-151.0,0.00033944,30]
[391890646,1760957444300,-220.519447,0.00033944,30]
[391890647,1760957444309,-220.519447,0.00033944,30]
[391890648,1760957444319,-220.519447,0.00033944,30]
[391890649,1760957444328,-220.519447,0.00033944,30]
[391890650,1760957444338,-151.0,0.00033944,30]
[391890651,1760957444348,-151.0,0.00033944,30]
[391890652,1760957444359,-261.384855,0.00033944,30]
[391890653,1760957444369,-151.0,0.00033944,30]
[391890654,1760957444380,-261.384855,0.00033944,30]
[391890655,1760957444389,-261.384855,0.00033944,30]
[391890656,1760957444399,-261.384855,0.00033944,30]
[391890657,1760957444408,-151.0,0.00033944,30]
[391890658,1760957444418,-151.0,0.00033944,30]
[391890659,1760957444427,-501.806734,0.00033944,30]
[391890660,1760957444436,-496.657153,0.00033944,30]
[391890661,1760957444446,-501.806734,0.00033944,30]
[391890662,1760957444455,-496.657153,0.00033944,30]
[391890663,1760957444465,-501.806734,0.00033944,30]
[391890664,1760957444474,-496.657153,0.00033944,30]
[391890665,1760957444484,-501.806734,0.00033944,30]
[391890666,1760957444493,-496.657153,0.00033944,30]
[391890667,1760957444503,-151.0,0.00033944,30]
[391890668,1760957444514,-151.0,0.00033944,30]
[391890669,1760957444524,-151.0,0.00033944,30]
[391890670,1760957444535,-276.228048,0.00033944,30]
[391890671,1760957444544,-151.0,0.00033944,30]
[391890672,1760957444554,-155.877407,0.00033944,30]
[391890673,1760957444563,-1090.923273,0.00033944,30]
[391890674,1760957444573,-1090.923273,0.00033944,30]
[391890675,1760957444583,-1090.923273,0.00033944,30]
[391890676,1760957444593,-1090.923273,0.00033944,30]
[391890677,1760957444603,-151.0,0.00033944,30]
[391890678,1760957444615,-235.1944,0.00033944,30]
[391890679,1760957444626,-173.402367,0.00033944,30]
[391890680,1760957444635,-180.921693,0.00033944,30]
[391890681,1760957444646,-173.402367,0.00033944,30]
[391890682,1760957444655,-180.921693,0.00033944,30]
[391890683,1760957444663,-173.402367,0.00033944,30]
[391890684,1760957444671,-180.921693,0.00033944,30]
[391890685,1760957444683,-173.402367,0.00033944,30]
[391890686,1760957444694,-180.921693,0.00033944,30]
[391890687,1760957444704,-151.0,0.00033944,30]
[391890688,1760957444713,-151.0,0.00033944,30]
[391890689,1760957444723,-151.0,0.00033944,30]
[391890690,1760957444732,-151.0,0.00033944,2]
[391890691,1760957444741,-151.0,0.00033944,30]
[391890692,1760957444751,-151.0,0.00033944,30]
[391890693,1760957444760,-177.750339,0.00033944,30]
[391890694,1760957444769,-151.0,0.00033944,30]
[391890695,1760957444779,-177.750339,0.00033944,30]
[391890696,1760957444788,-177.750339,0.00033944,30]
[391890697,1760957444797,-177.750339,0.00033944,30]
[391890698,1760957444807,-151.0,0.00033944,30]
[391890699,1760957444816,-151.0,0.00033944,30]
[391890700,1760957444826,-151.0,0.00033944,30]
[391890701,1760957444835,-151.0,0.00033944,30]
[391890702,1760957444844,-151.0,0.00033944,30]
[391890703,1760957444854,-151.0,0.00033944,30]
[391890704,1760957444864,-151.0,0.00033944,30]
[391890705,1760957444874,-151.0,0.00033944,30]
[391890706,1760957444884,-151.0,0.00033944,30]
[391890707,1760957444894,-151.0,0.00033944,30]
[391890708,1760957444903,-151.0,0.00033944,30]
[391890709,1760957444913,-151.0,0.00033944,30]
[391890710,1760957444923,-157.915155,0.00033944,30]
[391890711,1760957444932,-151.0,0.00033944,30]
[391890712,1760957444942,-151.0,0.00033944,30]
[391890713,1760957444952,-1141.907673,0.00033944,30]
[391890714,1760957444962,-169.790875,0.00033944,30]
[391890715,1760957444972,-1141.907673,0.00033944,30]
[391890716,1760957444982,-1141.907673,0.00033944,30]
[391890717,1760957444991,-151.0,0.00033944,30]
[391890718,1760957445001,-1141.907673,0.00033944,30]
[391890719,1760957445010,-151.0,0.00033944,30]
[391890720,1760957445020,-151.0,0.00033944,30]
[391890721,1760957445030,-151.0,0.00033944,30]
[391890722,1760957445039,-256.031148,0.00033944,30]
[391890723,1760957445049,-256.031148,0.00033944,30]
[391890724,1760957445059,-256.031148,0.00033944,30]
[391890725,1760957445068,-256.031148,0.00033944,30]
[391890726,1760957445078,-159.10792,0.00033944,30]
[391890727,1760957445087,-153.581276,0.00033944,30]
[391890728,1760957445096,-161.844852,0.00033944,30]
[391890729,1760957445106,-151.0,0.00033944,30]
[391890730,1760957445116,-161.844852,0.00033944,30]
[391890731,1760957445125,-151.0,0.00033944,30]
[391890732,1760957445134,-161.844852,0.00033944,30]
[391890733,1760957445144,-161.844852,0.00033944,30]
[391890734,1760957445153,-151.90501,0.00033944,30]
[391890735,1760957445163,-151.0,0.00033944,30]
[391890736,1760957445172,-151.0,0.00033944,30]
[391890737,1760957445181,-151.0,0.00033944,30]
[391890738,1760957445190,-151.0,0.00033944,30]
[391890739,1760957445200,-186.281692,0.00033944,30]
[391890740,1760957445209,-152.547343,0.00033944,30]
[391890741,1760957445218,-180.969693,0.00033944,30]
[391890742,1760957445227,-180.969693,0.00033944,30]
[391890743,1760957445237,-180.969693,0.00033944,30]
[391890744,1760957445246,-180.969693,0.00033944,30]
[391890745,1760957445255,-150.0,0.00033951,30]
[391890746,1760957445265,-6395.875444,0.00033951,30]
[391890747,1760957445274,-941.25892401,0.00033951,5]
[391890748,1760957445283,-1712339.93013795,0.00033951,30]
[391890749,1760957445761,150.0,0.00020326,2]
[391890750,1760957445869,150.0,0.00021294,2]
[391890751,1760957445935,150.0,0.00022262,2]
[391890753,1760957445992,150.0,0.0002323,2]
[391890754,1760957446310,-3e-08,0.00024198,2]
[391890755,1760957446321,-149.99999997,0.00024198,2]
[391890756,1760957446330,-113319.84368002,0.00033951,30]
[391890809,1760957446887,-150.0,0.00025166,2]
[391890812,1760957446896,-150.0,0.00026134,2]
[391890814,1760957446906,-1679.854429,0.00033951,30]
[391890915,1760957670366,5795.22,0.00033963,60]
[391890916,1760957691409,1500.0,0.00015,2]
[391890922,1760957844102,417.15472785,0.00024141,2]
[391890923,1760957854465,5487.37207104,0.00024141,2]
[391890924,1760957854487,4512.62792896,0.00024141,2]
[391890925,1760957865270,5487.38207104,0.00021,10]
[391890926,1760957865291,4512.61792896,0.00021,10]
[391890927,1760957887913,5487.39207104,0.00024141,2]
[391890929,1760957888896,-4512.60792896,0.00024141,2]
[391890933,1760957910336,974.79414208,0.00024141,2]
[391890934,1760957910357,9025.20585792,0.00024141,2]
[391890935,1760957922120,974.80414208,0.00021,10]
[391890936,1760957922142,9025.19585792,0.00021,10]
[391890937,1760957966527,150.0,0.0002011,2]
[391890938,1760957966930,209.75,0.00021067,2]
[391890939,1760957967363,314.63,0.00022025,2]
[391890940,1760957967799,300.43414208,0.00022983,2]
[391890941,1760957967822,119.06585792,0.00022983,2]
[391890942,1760957968262,524.38,0.0002394,2]
[391890944,1760958046174,150.0,0.0002012,2]
[391890945,1760958046635,168.56,0.00021078,2]
[391890946,1760958047113,252.84,0.00022036,2]
[391890947,1760958047548,337.12,0.00022995,2]
[391890948,1760958047964,421.4,0.00023953,2]
[391890949,1760958066878,161.0,9.3e-07,2]
[391890950,1760958113442,5000.0,0.00024141,2]
[391890951,1760958125065,150.0,0.00020092,2]
[391890952,1760958125484,150.0,0.00021049,2]
[391890953,1760958125900,202.06,0.00022005,2]
[391890954,1760958126398,269.41,0.00022962,2]
[391890955,1760958126816,336.76,0.00023919,2]